[Event "Live Chess"]
[Site "Chess.com"]
[Date "2023.05.21"]
[Round "-"]
[White "WombatIn_A_Box"]
[Black "OleksiyJr1"]
[Result "0-1"]
[WhiteElo "539"]
[BlackElo "974"]
[TimeControl "300"]
[EndTime "2:25:24 PDT"]
[Termination "OleksiyJr1 won by checkmate"]

1. e4 {[%clk 0:04:58.8]} 1... c5 {[%clk 0:04:58.4]} 2. d4 {[%clk 0:04:57.2]}
2... cxd4 {[%clk 0:04:57.3]} 3. Qxd4 {[%clk 0:04:55.7]} 3... Nc6 {[%clk
0:04:57.2]} 4. Qc4 {[%clk 0:04:54.1]} 4... e6 {[%clk 0:04:51.8]} 5. Nc3 {[%clk
0:04:53.3]} 5... Nf6 {[%clk 0:04:48.3]} 6. Nf3 {[%clk 0:04:52]} 6... d5 {[%clk
0:04:47.3]} 7. Qd3 {[%clk 0:04:11.9]} 7... dxe4 {[%clk 0:04:39.8]} 8. Qe2 {[%clk
0:04:08.3]} 8... exf3 {[%clk 0:04:38.2]} 9. gxf3 {[%clk 0:04:06.9]} 9... Nd4
{[%clk 0:04:37.2]} 10. Qe5 {[%clk 0:04:02]} 10... Nxc2+ {[%clk 0:04:29.2]} 11.
Ke2 {[%clk 0:03:55.5]} 11... Nxa1 {[%clk 0:04:24.5]} 12. Bg5 {[%clk 0:03:52.4]}
12... Bb4 {[%clk 0:04:18.5]} 13. Na4 {[%clk 0:03:47.2]} 13... Qd2+ {[%clk
0:04:14.4]} 14. Bxd2 {[%clk 0:03:41.5]} 14... Bxd2 {[%clk 0:04:13.6]} 15. Kxd2
{[%clk 0:03:40.5]} 15... O-O {[%clk 0:04:12.2]} 16. Be2 {[%clk 0:03:39.6]} 16...
Rd8+ {[%clk 0:04:10.2]} 17. Ke3 {[%clk 0:03:36.3]} 17... Bd7 {[%clk 0:04:08.2]}
18. Rxa1 {[%clk 0:03:32.7]} 18... Bxa4 {[%clk 0:04:06.8]} 19. b3 {[%clk
0:03:30.9]} 19... Bc6 {[%clk 0:04:05.3]} 20. Qc3 {[%clk 0:03:20.6]} 20... Rd5
{[%clk 0:04:01.9]} 21. Rc1 {[%clk 0:03:18.2]} 21... Rd6 {[%clk 0:03:59.2]} 22.
b4 {[%clk 0:03:16.3]} 22... Nd5+ {[%clk 0:03:57.8]} 23. Kd4 {[%clk 0:03:10.5]}
23... Nxc3+ {[%clk 0:03:57.7]} 24. Kxc3 {[%clk 0:03:08.3]} 24... Rad8 {[%clk
0:03:43.7]} 25. f4 {[%clk 0:03:02.2]} 25... Rd2 {[%clk 0:03:39.8]} 26. Bf3
{[%clk 0:02:55.8]} 26... Rxf2 {[%clk 0:03:37.4]} 27. Rc2 {[%clk 0:02:52.3]}
27... Rxf3+ {[%clk 0:03:35.7]} 28. Kb2 {[%clk 0:02:50.7]} 28... Be4 {[%clk
0:03:32.9]} 29. Rc7 {[%clk 0:02:44.9]} 29... Rf2+ {[%clk 0:03:30.8]} 30. Kc3
{[%clk 0:02:43.2]} 30... Rd3+ {[%clk 0:03:29.4]} 31. Kc4 {[%clk 0:02:37.5]}
31... Rc2+ {[%clk 0:03:27.4]} 32. Kb5 {[%clk 0:02:34.7]} 32... Rxc7 {[%clk
0:03:26.1]} 33. a4 {[%clk 0:02:31.6]} 33... Rd5# {[%clk 0:03:23.8]} 0-1

[Event "Live Chess"]
[Site "Chess.com"]
[Date "2023.05.21"]
[Round "-"]
[White "karimghalambaz"]
[Black "MJMykh"]
[Result "1/2-1/2"]
[WhiteElo "1276"]
[BlackElo "1149"]
[TimeControl "300"]
[EndTime "2:25:25 PDT"]
[Termination "Game drawn - timeout vs insufficient material"]

1. d4 {[%clk 0:04:55.4]} 1... d5 {[%clk 0:04:59]} 2. Bf4 {[%clk 0:04:53.8]} 2...
Nc6 {[%clk 0:04:57.8]} 3. e3 {[%clk 0:04:51.7]} 3... a6 {[%clk 0:04:56.2]} 4.
Nd2 {[%clk 0:04:50.2]} 4... Nf6 {[%clk 0:04:55.3]} 5. Ngf3 {[%clk 0:04:48.1]}
5... Bf5 {[%clk 0:04:54.2]} 6. c3 {[%clk 0:04:45.4]} 6... Bg4 {[%clk 0:04:51.8]}
7. Be2 {[%clk 0:04:42.9]} 7... Bxf3 {[%clk 0:04:51.7]} 8. Bxf3 {[%clk
0:04:38.8]} 8... e6 {[%clk 0:04:51.6]} 9. O-O {[%clk 0:04:33.1]} 9... Be7 {[%clk
0:04:50.5]} 10. h3 {[%clk 0:04:23.5]} 10... O-O {[%clk 0:04:49.4]} 11. Qb3
{[%clk 0:04:15.1]} 11... b5 {[%clk 0:04:42.4]} 12. a4 {[%clk 0:04:11.9]} 12...
Na5 {[%clk 0:04:38.3]} 13. Qc2 {[%clk 0:04:07.5]} 13... bxa4 {[%clk 0:04:36]}
14. Qxa4 {[%clk 0:04:05.2]} 14... c6 {[%clk 0:04:32.8]} 15. Qxa5 {[%clk
0:04:03.3]} 15... Qxa5 {[%clk 0:04:32.3]} 16. Rxa5 {[%clk 0:04:01.6]} 16... h6
{[%clk 0:04:25.3]} 17. Rfa1 {[%clk 0:03:57.9]} 17... Rfc8 {[%clk 0:04:20]} 18.
Rxa6 {[%clk 0:03:55.6]} 18... Rxa6 {[%clk 0:04:18.8]} 19. Rxa6 {[%clk
0:03:53.8]} 19... c5 {[%clk 0:04:18.7]} 20. dxc5 {[%clk 0:03:51.6]} 20... Bxc5
{[%clk 0:04:17.2]} 21. Nb3 {[%clk 0:03:45.5]} 21... Be7 {[%clk 0:04:14.4]} 22.
Nd4 {[%clk 0:03:41.5]} 22... Bc5 {[%clk 0:04:10.8]} 23. Ra5 {[%clk 0:03:32.2]}
23... Bxd4 {[%clk 0:04:09.3]} 24. exd4 {[%clk 0:03:29.7]} 24... g5 {[%clk
0:04:05.7]} 25. Be5 {[%clk 0:03:27.3]} 25... Kg7 {[%clk 0:04:05.1]} 26. Bxf6+
{[%clk 0:03:25.4]} 26... Kxf6 {[%clk 0:04:04.2]} 27. Kf1 {[%clk 0:03:20.8]}
27... Rb8 {[%clk 0:04:03.1]} 28. Ra6 {[%clk 0:03:15.3]} 28... Rxb2 {[%clk
0:04:01.3]} 29. Rc6 {[%clk 0:03:07.9]} 29... Rb1+ {[%clk 0:03:56.9]} 30. Ke2
{[%clk 0:03:06.3]} 30... Rb2+ {[%clk 0:03:55.7]} 31. Ke3 {[%clk 0:03:03.6]}
31... Kf5 {[%clk 0:03:53.1]} 32. g4+ {[%clk 0:03:01.5]} 32... Kg6 {[%clk
0:03:49.9]} 33. c4 {[%clk 0:02:58.1]} 33... dxc4 {[%clk 0:03:45.9]} 34. Rxc4
{[%clk 0:02:56.2]} 34... Rb3+ {[%clk 0:03:44.6]} 35. Ke2 {[%clk 0:02:49.7]}
35... Rb2+ {[%clk 0:03:41.3]} 36. Kf1 {[%clk 0:02:47.7]} 36... Rb1+ {[%clk
0:03:39.7]} 37. Kg2 {[%clk 0:02:46.1]} 37... Rb6 {[%clk 0:03:35.8]} 38. d5
{[%clk 0:02:44.2]} 38... exd5 {[%clk 0:03:34.4]} 39. Bxd5 {[%clk 0:02:42.2]}
39... f6 {[%clk 0:03:22.4]} 40. Be4+ {[%clk 0:02:37.4]} 40... Kg7 {[%clk
0:03:20]} 41. Rc7+ {[%clk 0:02:35.5]} 41... Kf8 {[%clk 0:03:18.7]} 42. Rh7
{[%clk 0:02:32.4]} 42... Re6 {[%clk 0:03:13.5]} 43. f3 {[%clk 0:02:30.1]} 43...
Kg8 {[%clk 0:03:10.7]} 44. Rxh6 {[%clk 0:02:27.1]} 44... Kg7 {[%clk 0:03:09.4]}
45. Rh7+ {[%clk 0:02:22.4]} 45... Kg8 {[%clk 0:03:07.3]} 46. Bf5 {[%clk
0:02:20.1]} 46... Re2+ {[%clk 0:03:04.8]} 47. Kg3 {[%clk 0:02:16.7]} 47... Re5
{[%clk 0:03:02.1]} 48. h4 {[%clk 0:02:13]} 48... gxh4+ {[%clk 0:03:00.2]} 49.
Kxh4 {[%clk 0:02:11.2]} 49... Kf8 {[%clk 0:02:56.1]} 50. Rh8+ {[%clk 0:02:05]}
50... Kg7 {[%clk 0:02:53.8]} 51. Rh7+ {[%clk 0:02:01.4]} 51... Kg8 {[%clk
0:02:50.1]} 52. f4 {[%clk 0:01:59.8]} 52... Re1 {[%clk 0:02:45.4]} 53. Rb7
{[%clk 0:01:53.6]} 53... Rh1+ {[%clk 0:02:41.7]} 54. Kg3 {[%clk 0:01:51.3]}
54... Rg1+ {[%clk 0:02:39.4]} 55. Kh4 {[%clk 0:01:48.6]} 55... Rh1+ {[%clk
0:02:37.9]} 56. Kg3 {[%clk 0:01:46.6]} 56... Rg1+ {[%clk 0:02:37.5]} 57. Kf3
{[%clk 0:01:44.6]} 57... Rh1 {[%clk 0:02:32.6]} 58. g5 {[%clk 0:01:41.5]} 58...
fxg5 {[%clk 0:02:31.1]} 59. fxg5 {[%clk 0:01:39.6]} 59... Rf1+ {[%clk
0:02:29.7]} 60. Kg4 {[%clk 0:01:37.8]} 60... Rg1+ {[%clk 0:02:28.9]} 61. Kh5
{[%clk 0:01:35.9]} 61... Rh1+ {[%clk 0:02:26.1]} 62. Kg6 {[%clk 0:01:34.1]}
62... Kf8 {[%clk 0:02:17]} 63. Kf6 {[%clk 0:01:23.9]} 63... Ke8 {[%clk
0:02:13.5]} 64. g6 {[%clk 0:01:21.5]} 64... Rh6 {[%clk 0:02:10.7]} 65. Kg7
{[%clk 0:01:18.2]} 65... Rh1 {[%clk 0:02:08]} 66. Rb8+ {[%clk 0:01:11.5]} 66...
Ke7 {[%clk 0:02:06.4]} 67. Be4 {[%clk 0:01:07]} 67... Re1 {[%clk 0:01:59.1]} 68.
Bc2 {[%clk 0:01:02.3]} 68... Rc1 {[%clk 0:01:54.9]} 69. Rb7+ {[%clk 0:01:00.4]}
69... Ke8 {[%clk 0:01:51.3]} 70. Rb2 {[%clk 0:00:57]} 70... Ke7 {[%clk
0:01:45.7]} 71. Kg8 {[%clk 0:00:55]} 71... Rg1 {[%clk 0:01:42.8]} 72. g7 {[%clk
0:00:50.6]} 72... Kf6 {[%clk 0:01:40.5]} 73. Rb6+ {[%clk 0:00:43.8]} 73... Ke7
{[%clk 0:01:38.9]} 74. Be4 {[%clk 0:00:39.7]} 74... Ke8 {[%clk 0:01:32.8]} 75.
Kh8 {[%clk 0:00:35.9]} 75... Kf7 {[%clk 0:01:29.5]} 76. Bh7 {[%clk 0:00:32.5]}
76... Rxg7 {[%clk 0:01:25.4]} 77. Rb7+ {[%clk 0:00:27.9]} 77... Kf8 {[%clk
0:01:24.1]} 78. Rxg7 {[%clk 0:00:25.5]} 78... Ke8 {[%clk 0:01:23.6]} 79. Rb7
{[%clk 0:00:18.1]} 79... Kd8 {[%clk 0:01:22.5]} 80. Kg7 {[%clk 0:00:16]} 80...
Kc8 {[%clk 0:01:22.3]} 81. Rf7 {[%clk 0:00:13.5]} 81... Kd8 {[%clk 0:01:21.3]}
82. Kf6 {[%clk 0:00:12.3]} 82... Ke8 {[%clk 0:01:18.5]} 83. Ke6 {[%clk
0:00:11.2]} 83... Kd8 {[%clk 0:01:17.2]} 84. Re7 {[%clk 0:00:09.7]} 84... Kc8
{[%clk 0:01:16.2]} 85. Kd6 {[%clk 0:00:08.5]} 85... Kd8 {[%clk 0:01:12.7]} 86.
Bg6 {[%clk 0:00:04.8]} 86... Kc8 {[%clk 0:01:11.3]} 87. Rd7 {[%clk 0:00:03.6]}
87... Kb8 {[%clk 0:01:10]} 88. Kc6 {[%clk 0:00:02.9]} 88... Kc8 {[%clk 0:01:07]}
1/2-1/2

[Event "Live Chess"]
[Site "Chess.com"]
[Date "2023.05.21"]
[Round "-"]
[White "elephantgerrald"]
[Black "Hacker_2009"]
[Result "0-1"]
[WhiteElo "688"]
[BlackElo "1916"]
[TimeControl "300"]
[EndTime "2:26:03 PDT"]
[Termination "Hacker_2009 won by checkmate"]

1. e4 {[%clk 0:04:58.1]} 1... c5 {[%clk 0:04:58.8]} 2. Nf3 {[%clk 0:04:55.9]}
2... d6 {[%clk 0:04:57]} 3. e5 {[%clk 0:04:53.9]} 3... dxe5 {[%clk 0:04:55]} 4.
Nxe5 {[%clk 0:04:47.3]} 4... Qc7 {[%clk 0:04:52.2]} 5. Qh5 {[%clk 0:04:43.6]}
5... g6 {[%clk 0:04:45.5]} 6. Qe2 {[%clk 0:04:38.5]} 6... Bg7 {[%clk 0:04:42.2]}
7. Qb5+ {[%clk 0:04:35.5]} 7... Nc6 {[%clk 0:04:36.8]} 8. Nxc6 {[%clk
0:04:33.6]} 8... bxc6 {[%clk 0:04:35.8]} 9. Qxc5 {[%clk 0:04:32]} 9... Nf6
{[%clk 0:04:28.3]} 10. Bc4 {[%clk 0:04:25.1]} 10... O-O {[%clk 0:04:25.8]} 11.
O-O {[%clk 0:04:22.3]} 11... Ng4 {[%clk 0:04:15.8]} 12. g3 {[%clk 0:04:07.4]}
12... Ne5 {[%clk 0:04:14]} 13. Nc3 {[%clk 0:03:56.8]} 13... Bh3 {[%clk
0:04:06.4]} 14. Re1 {[%clk 0:03:30.2]} 14... Nf3+ {[%clk 0:04:02.4]} 15. Kh1
{[%clk 0:03:28.1]} 15... Nxe1 {[%clk 0:04:01.3]} 16. d3 {[%clk 0:03:24.1]} 16...
Nxc2 {[%clk 0:03:59.4]} 17. Bf4 {[%clk 0:03:21.2]} 17... e5 {[%clk 0:03:57.1]}
18. Bxf7+ {[%clk 0:03:17.5]} 18... Rxf7 {[%clk 0:03:54.8]} 19. Rc1 {[%clk
0:03:12.1]} 19... exf4 {[%clk 0:03:52.8]} 20. Rxc2 {[%clk 0:02:56.2]} 20... fxg3
{[%clk 0:03:52.1]} 21. hxg3 {[%clk 0:02:48.8]} 21... Raf8 {[%clk 0:03:50.8]} 22.
Re2 {[%clk 0:02:44.6]} 22... Qd7 {[%clk 0:03:41.6]} 23. Ne4 {[%clk 0:02:40]}
23... Qg4 {[%clk 0:03:38]} 24. Qxf8+ {[%clk 0:02:37.8]} 24... Rxf8 {[%clk
0:03:35.9]} 25. Nf6+ {[%clk 0:02:29]} 25... Bxf6 {[%clk 0:03:33.7]} 26. Re4
{[%clk 0:02:27.6]} 26... Qf3+ {[%clk 0:03:32.2]} 27. Kh2 {[%clk 0:02:24.8]}
27... Qg2# {[%clk 0:03:32.1]} 0-1

[Event "Live Chess"]
[Site "Chess.com"]
[Date "2023.05.21"]
[Round "-"]
[White "MarkLim1"]
[Black "DoYouLikeCurry"]
[Result "1-0"]
[WhiteElo "1724"]
[BlackElo "1376"]
[TimeControl "300"]
[EndTime "2:26:17 PDT"]
[Termination "MarkLim1 won by checkmate"]

1. d4 {[%clk 0:04:59.5]} 1... d5 {[%clk 0:04:58]} 2. Nf3 {[%clk 0:04:58.9]} 2...
Nf6 {[%clk 0:04:56.3]} 3. c4 {[%clk 0:04:57.8]} 3... c6 {[%clk 0:04:53.7]} 4.
cxd5 {[%clk 0:04:56.9]} 4... cxd5 {[%clk 0:04:52.7]} 5. Nc3 {[%clk 0:04:56.8]}
5... Nc6 {[%clk 0:04:47.5]} 6. Bf4 {[%clk 0:04:56.3]} 6... Bd7 {[%clk
0:04:42.2]} 7. e3 {[%clk 0:04:53.8]} 7... e6 {[%clk 0:04:41.2]} 8. Bd3 {[%clk
0:04:48.6]} 8... Rc8 {[%clk 0:04:37]} 9. Rc1 {[%clk 0:04:47.9]} 9... Bb4 {[%clk
0:04:35.1]} 10. O-O {[%clk 0:04:46.4]} 10... O-O {[%clk 0:04:32.3]} 11. a3
{[%clk 0:04:43.5]} 11... Bxc3 {[%clk 0:04:28.2]} 12. Rxc3 {[%clk 0:04:43.4]}
12... Nh5 {[%clk 0:04:20.9]} 13. Be5 {[%clk 0:04:39.7]} 13... f6 {[%clk
0:04:19.7]} 14. Bg3 {[%clk 0:04:38.5]} 14... Nxg3 {[%clk 0:04:18.2]} 15. hxg3
{[%clk 0:04:37.5]} 15... e5 {[%clk 0:04:12.1]} 16. dxe5 {[%clk 0:04:33.2]} 16...
fxe5 {[%clk 0:04:11]} 17. Nd2 {[%clk 0:04:27.2]} 17... e4 {[%clk 0:04:00.9]} 18.
Bb5 {[%clk 0:04:22.6]} 18... Ne5 {[%clk 0:03:58]} 19. Bxd7 {[%clk 0:04:03.1]}
19... Qxd7 {[%clk 0:03:57]} 20. Qb3 {[%clk 0:04:02]} 20... Rxc3 {[%clk 0:03:55]}
21. bxc3 {[%clk 0:04:01.1]} 21... Qc6 {[%clk 0:03:45.5]} 22. Nxe4 {[%clk
0:03:58]} 22... Kh8 {[%clk 0:03:41.9]} 23. Nd2 {[%clk 0:03:52.9]} 23... Qh6
{[%clk 0:03:29.7]} 24. Qxd5 {[%clk 0:03:46.3]} 24... Ng4 {[%clk 0:03:28.7]} 25.
Nf3 {[%clk 0:03:45.3]} 25... Rxf3 {[%clk 0:03:25.4]} 26. Qd8+ {[%clk 0:03:41.4]}
26... Rf8 {[%clk 0:03:22.4]} 27. Qxf8# {[%clk 0:03:40.2]} 1-0

[Event "Live Chess"]
[Site "Chess.com"]
[Date "2023.05.21"]
[Round "-"]
[White "ChessTWSS"]
[Black "Doge_Dandolo"]
[Result "1/2-1/2"]
[WhiteElo "1623"]
[BlackElo "1864"]
[TimeControl "300"]
[EndTime "2:26:21 PDT"]
[Termination "Game drawn by repetition"]

1. d4 {[%clk 0:04:55.6]} 1... d5 {[%clk 0:04:58.5]} 2. Bf4 {[%clk 0:04:50.9]}
2... Nf6 {[%clk 0:04:55.1]} 3. e3 {[%clk 0:04:46.7]} 3... c5 {[%clk 0:04:53.7]}
4. c3 {[%clk 0:04:42.7]} 4... Qb6 {[%clk 0:04:52.5]} 5. Qb3 {[%clk 0:04:34]}
5... Bf5 {[%clk 0:04:47.3]} 6. Nf3 {[%clk 0:04:17.3]} 6... e6 {[%clk 0:04:42.1]}
7. Bxb8 {[%clk 0:04:10.8]} 7... Rxb8 {[%clk 0:04:39.6]} 8. Qxb6 {[%clk
0:04:08.6]} 8... axb6 {[%clk 0:04:38.3]} 9. Bb5+ {[%clk 0:03:58]} 9... Kd8
{[%clk 0:04:36.1]} 10. Ne5 {[%clk 0:03:53.6]} 10... Bg6 {[%clk 0:04:34.4]} 11.
Nxg6 {[%clk 0:03:46.9]} 11... hxg6 {[%clk 0:04:33]} 12. O-O {[%clk 0:03:40.1]}
12... Bd6 {[%clk 0:04:31.7]} 13. h3 {[%clk 0:03:31.3]} 13... g5 {[%clk
0:04:30.2]} 14. Nd2 {[%clk 0:03:23.1]} 14... g4 {[%clk 0:04:29]} 15. hxg4 {[%clk
0:03:17.3]} 15... Nxg4 {[%clk 0:04:26.7]} 16. g3 {[%clk 0:03:11]} 16... Ke7
{[%clk 0:04:19.8]} 17. c4 {[%clk 0:02:48.9]} 17... Rh6 {[%clk 0:04:16.9]} 18.
cxd5 {[%clk 0:02:43.7]} 18... Rbh8 {[%clk 0:04:12.3]} 19. dxe6 {[%clk
0:02:37.7]} 19... Rh1+ {[%clk 0:04:09.4]} 20. Kg2 {[%clk 0:02:32.1]} 20... R1h2+
{[%clk 0:03:57.1]} 21. Kg1 {[%clk 0:02:24.6]} 21... fxe6 {[%clk 0:03:50.6]} 22.
Nf3 {[%clk 0:02:17.4]} 22... R2h6 {[%clk 0:03:41.3]} 23. dxc5 {[%clk 0:02:06.9]}
23... Bxc5 {[%clk 0:03:38.9]} 24. a3 {[%clk 0:01:46.9]} 24... e5 {[%clk
0:03:25.9]} 25. b4 {[%clk 0:01:42.9]} 25... e4 {[%clk 0:03:24]} 26. Nh4 {[%clk
0:01:37.6]} 26... Bd6 {[%clk 0:03:13.5]} 27. Nf5+ {[%clk 0:01:28.6]} 27... Ke6
{[%clk 0:03:12.6]} 28. Nxh6 {[%clk 0:01:24]} 28... Rxh6 {[%clk 0:03:11.6]} 29.
Bc4+ {[%clk 0:01:18.3]} 29... Ke7 {[%clk 0:03:09.6]} 30. Rad1 {[%clk 0:01:06]}
30... Ne5 {[%clk 0:03:07.8]} 31. Kg2 {[%clk 0:00:52.5]} 31... Nxc4 {[%clk
0:03:01.5]} 32. Rd4 {[%clk 0:00:47.9]} 32... Ne5 {[%clk 0:02:48.6]} 33. Rxe4
{[%clk 0:00:42.1]} 33... Kf6 {[%clk 0:02:45.4]} 34. f4 {[%clk 0:00:36.8]} 34...
Ng4 {[%clk 0:02:40.4]} 35. Rd1 {[%clk 0:00:28.4]} 35... Be7 {[%clk 0:02:34.6]}
36. Rd7 {[%clk 0:00:19]} 36... Rh2+ {[%clk 0:02:12.3]} 37. Kf3 {[%clk
0:00:17.2]} 37... Nh6 {[%clk 0:02:05.9]} 38. Rdxe7 {[%clk 0:00:14.1]} 38... Ra2
{[%clk 0:02:02.8]} 39. R4e6+ {[%clk 0:00:10.6]} 39... Kf5 {[%clk 0:02:00.8]} 40.
Re5+ {[%clk 0:00:07.8]} 40... Kf6 {[%clk 0:01:59.8]} 41. R5e6+ {[%clk
0:00:05.5]} 41... Kf5 {[%clk 0:01:58.5]} 42. Re5+ {[%clk 0:00:04.5]} 42... Kf6
{[%clk 0:01:57.6]} 43. R5e6+ {[%clk 0:00:04.1]} 1/2-1/2

[Event "Live Chess"]
[Site "Chess.com"]
[Date "2023.05.21"]
[Round "-"]
[White "OceanFloater"]
[Black "HadesLearmonth"]
[Result "1-0"]
[WhiteElo "1033"]
[BlackElo "1191"]
[TimeControl "300"]
[EndTime "2:26:27 PDT"]
[Termination "OceanFloater won by resignation"]

1. e4 {[%clk 0:04:54.5]} 1... e5 {[%clk 0:04:58.9]} 2. Nf3 {[%clk 0:04:53.1]}
2... Nc6 {[%clk 0:04:57.5]} 3. Bc4 {[%clk 0:04:48.6]} 3... Nd4 {[%clk
0:04:55.2]} 4. Nxd4 {[%clk 0:04:46.8]} 4... exd4 {[%clk 0:04:53.4]} 5. O-O
{[%clk 0:04:45.6]} 5... Nf6 {[%clk 0:04:51.8]} 6. Re1 {[%clk 0:04:44.3]} 6...
Bc5 {[%clk 0:04:48.1]} 7. e5 {[%clk 0:04:40.2]} 7... Ng8 {[%clk 0:04:25.6]} 8.
d3 {[%clk 0:04:36.9]} 8... Ne7 {[%clk 0:04:24.4]} 9. c3 {[%clk 0:04:34.7]} 9...
O-O {[%clk 0:04:21.2]} 10. cxd4 {[%clk 0:04:31.7]} 10... Bxd4 {[%clk 0:04:21.1]}
11. Nc3 {[%clk 0:04:30.6]} 11... Ng6 {[%clk 0:04:18.2]} 12. Be3 {[%clk
0:04:26.5]} 12... Bxe3 {[%clk 0:04:14.7]} 13. Rxe3 {[%clk 0:04:25.2]} 13... d5
{[%clk 0:04:13.4]} 14. Nxd5 {[%clk 0:04:20.9]} 14... b5 {[%clk 0:04:06.4]} 15.
Bb3 {[%clk 0:04:12.1]} 15... Bb7 {[%clk 0:04:00.6]} 16. Qf3 {[%clk 0:04:02]}
16... c6 {[%clk 0:03:51.4]} 17. Nc3 {[%clk 0:03:45.7]} 17... Qb6 {[%clk
0:03:37.6]} 18. e6 {[%clk 0:03:31.7]} 18... c5 {[%clk 0:03:22.2]} 19. Nd5 {[%clk
0:03:18.5]} 19... Bxd5 {[%clk 0:03:18.8]} 20. exf7+ {[%clk 0:03:13.9]} 20...
Bxf7 {[%clk 0:03:14.4]} 21. Bxf7+ {[%clk 0:03:10.7]} 21... Rxf7 {[%clk
0:03:13.1]} 22. Qxa8+ {[%clk 0:03:09.6]} 22... Rf8 {[%clk 0:03:09.9]} 23. Qd5+
{[%clk 0:03:05.5]} 23... Kh8 {[%clk 0:03:02.9]} 24. Rae1 {[%clk 0:03:05]} 24...
Nf4 {[%clk 0:03:01]} 25. Re8 {[%clk 0:02:58.7]} 25... h6 {[%clk 0:02:44.6]} 26.
Rxf8+ {[%clk 0:02:56.7]} 26... Kh7 {[%clk 0:02:43.6]} 27. Qf5+ {[%clk
0:02:52.2]} 27... Ng6 {[%clk 0:02:36.1]} 28. Re6 {[%clk 0:02:28.3]} 1-0

[Event "Live Chess"]
[Site "Chess.com"]
[Date "2023.05.21"]
[Round "-"]
[White "Mechhead7"]
[Black "wadsy27"]
[Result "0-1"]
[WhiteElo "1775"]
[BlackElo "2569"]
[TimeControl "300"]
[EndTime "2:26:45 PDT"]
[Termination "wadsy27 won by resignation"]

1. e4 {[%clk 0:04:59.1]} 1... c5 {[%clk 0:04:57.7]} 2. Nf3 {[%clk 0:04:57]} 2...
e6 {[%clk 0:04:57]} 3. d4 {[%clk 0:04:55.5]} 3... cxd4 {[%clk 0:04:56.9]} 4.
Nxd4 {[%clk 0:04:54.8]} 4... Nc6 {[%clk 0:04:56.8]} 5. Nc3 {[%clk 0:04:50]} 5...
Qc7 {[%clk 0:04:55.6]} 6. Be3 {[%clk 0:04:45.9]} 6... a6 {[%clk 0:04:54]} 7. Be2
{[%clk 0:04:44.8]} 7... Nf6 {[%clk 0:04:51.9]} 8. Nb3 {[%clk 0:04:40.4]} 8... b5
{[%clk 0:04:46.8]} 9. a3 {[%clk 0:04:38.5]} 9... Bb7 {[%clk 0:04:45.8]} 10. O-O
{[%clk 0:04:36.8]} 10... Be7 {[%clk 0:04:44]} 11. Kh1 {[%clk 0:04:33.3]} 11...
O-O {[%clk 0:04:42.3]} 12. f4 {[%clk 0:04:32.2]} 12... d6 {[%clk 0:04:41.4]} 13.
Qe1 {[%clk 0:04:22.1]} 13... Rfd8 {[%clk 0:04:36.4]} 14. Qg3 {[%clk 0:04:14.6]}
14... b4 {[%clk 0:04:20.8]} 15. axb4 {[%clk 0:04:09.7]} 15... Nxb4 {[%clk
0:04:20.7]} 16. Bd3 {[%clk 0:04:01.4]} 16... Nxd3 {[%clk 0:04:06.5]} 17. cxd3
{[%clk 0:04:00.1]} 17... d5 {[%clk 0:03:58.3]} 18. e5 {[%clk 0:03:51.6]} 18...
d4 {[%clk 0:03:48.8]} 19. exf6 {[%clk 0:03:49.2]} 19... Bxf6 {[%clk 0:03:47.9]}
20. Nxd4 {[%clk 0:03:39.7]} 20... Bxd4 {[%clk 0:03:46.1]} 21. Bxd4 {[%clk
0:03:27.6]} 21... Rxd4 {[%clk 0:03:44.2]} 22. Ne4 {[%clk 0:03:25.1]} 22... Rad8
{[%clk 0:03:27.1]} 23. Rac1 {[%clk 0:03:14.7]} 23... Qe7 {[%clk 0:03:25.3]} 24.
Nc5 {[%clk 0:03:07.9]} 24... g6 {[%clk 0:02:59.1]} 25. h3 {[%clk 0:03:04.2]}
25... R8d5 {[%clk 0:02:50.6]} 26. Nxb7 {[%clk 0:02:47.8]} 26... Qxb7 {[%clk
0:02:50.5]} 27. f5 {[%clk 0:02:40.7]} 27... exf5 {[%clk 0:02:40.8]} 28. Rc7
{[%clk 0:02:33.2]} 28... Qxb2 {[%clk 0:02:37.1]} 29. Qg5 {[%clk 0:02:14.9]}
29... Qb8 {[%clk 0:02:21.4]} 30. Rfc1 {[%clk 0:02:07]} 30... Qf8 {[%clk
0:02:13.7]} 31. Rc8 {[%clk 0:02:02.1]} 31... Rd8 {[%clk 0:02:12.7]} 32. R8c6
{[%clk 0:01:56.8]} 32... Rxd3 {[%clk 0:02:10.9]} 33. Rxa6 {[%clk 0:01:52.9]}
33... Rd1+ {[%clk 0:02:10]} 34. Rxd1 {[%clk 0:01:50.9]} 34... Rxd1+ {[%clk
0:02:09.9]} 35. Kh2 {[%clk 0:01:49.8]} 35... Qb8+ {[%clk 0:02:08.9]} 36. Qg3
{[%clk 0:01:43.9]} 36... Rh1+ {[%clk 0:02:07.6]} 37. Kxh1 {[%clk 0:01:38.2]}
37... Qxg3 {[%clk 0:02:05.7]} 0-1

[Event "Live Chess"]
[Site "Chess.com"]
[Date "2023.05.21"]
[Round "-"]
[White "PrinceCharming_1"]
[Black "Ian-Morley"]
[Result "1-0"]
[WhiteElo "1625"]
[BlackElo "1073"]
[TimeControl "300"]
[EndTime "2:27:03 PDT"]
[Termination "PrinceCharming_1 won by resignation"]

1. e4 {[%clk 0:04:57.1]} 1... d5 {[%clk 0:04:57.9]} 2. exd5 {[%clk 0:04:56.1]}
2... Qxd5 {[%clk 0:04:55.8]} 3. Nc3 {[%clk 0:04:55.8]} 3... Qd8 {[%clk
0:04:54.5]} 4. d4 {[%clk 0:04:54.2]} 4... g6 {[%clk 0:04:53.6]} 5. Nf3 {[%clk
0:04:53.5]} 5... Bg7 {[%clk 0:04:52.8]} 6. Be2 {[%clk 0:04:50.8]} 6... Nf6
{[%clk 0:04:52.1]} 7. Be3 {[%clk 0:04:49.5]} 7... O-O {[%clk 0:04:51.4]} 8. O-O
{[%clk 0:04:48.3]} 8... Bf5 {[%clk 0:04:50.2]} 9. Qd2 {[%clk 0:04:47.7]} 9... e6
{[%clk 0:04:49.5]} 10. Rad1 {[%clk 0:04:44.4]} 10... c6 {[%clk 0:04:46.5]} 11.
Bg5 {[%clk 0:04:43]} 11... Nbd7 {[%clk 0:04:44.3]} 12. Ne5 {[%clk 0:04:41.2]}
12... Qc7 {[%clk 0:04:28.5]} 13. Nxd7 {[%clk 0:04:39.1]} 13... Qxd7 {[%clk
0:04:25.4]} 14. h4 {[%clk 0:04:33]} 14... h6 {[%clk 0:04:23.3]} 15. Bxh6 {[%clk
0:04:32.1]} 15... Bxh6 {[%clk 0:04:22.1]} 16. Qxh6 {[%clk 0:04:32]} 16... Nh7
{[%clk 0:04:14.5]} 17. g4 {[%clk 0:04:26.1]} 17... f6 {[%clk 0:04:07.3]} 18.
gxf5 {[%clk 0:04:24.6]} 18... exf5 {[%clk 0:04:05.9]} 19. Qxg6+ {[%clk
0:04:21.1]} 19... Qg7 {[%clk 0:04:04.6]} 20. Qxg7+ {[%clk 0:04:19.5]} 20... Kxg7
{[%clk 0:04:03.9]} 21. Bd3 {[%clk 0:04:19.4]} 21... Kf7 {[%clk 0:04:00.6]} 22.
Kh2 {[%clk 0:04:18.8]} 22... Rg8 {[%clk 0:03:59.7]} 23. Bxf5 {[%clk 0:04:17.8]}
23... Nf8 {[%clk 0:03:50.5]} 24. Rg1 {[%clk 0:04:14.3]} 24... Nd7 {[%clk
0:03:47.3]} 25. Bxd7 {[%clk 0:04:12.3]} 25... Rxg1 {[%clk 0:03:45.9]} 26. Rxg1
{[%clk 0:04:12.2]} 1-0